bitfinex/quotes_BTCUSD_20250618
["timestamp","ask_amount","ask_price","bid_price","bid_amount"]
[1750210492292,0.00047153,104980.0,104970.0,0.99617357]
[1750210492522,0.00047153,104980.0,104970.0,0.78011222]
[1750210492998,0.00047153,104980.0,104970.0,0.56405087]
[1750210493224,0.00047153,104980.0,104970.0,0.78011222]
[1750210496773,0.00047153,104980.0,104970.0,0.99617357]
[1750210497008,0.00047153,104980.0,104970.0,0.56405087]
[1750210497231,0.00047153,104980.0,104970.0,0.99617357]
[1750210497457,0.00047153,104980.0,104970.0,1.01071442]
[1750210497924,0.00047153,104980.0,104970.0,1.03002463]
[1750210498843,0.00047153,104980.0,104970.0,1.37002463]
[1750210500709,0.00047153,104980.0,104970.0,0.73930193]
[1750210500941,0.00047153,104980.0,104970.0,0.56485087]
[1750210501183,0.00047153,104980.0,104970.0,0.56489087]
[1750210501643,0.00047153,104980.0,104970.0,0.78095222]
[1750210505534,0.00047153,104980.0,104970.0,0.74069222]
[1750210505762,0.01907153,104980.0,104970.0,0.74069222]
[1750210505978,0.00047153,104980.0,104970.0,0.74069222]
[1750210509170,0.00047153,104980.0,104970.0,0.52236017]
[1750210509376,0.04027153,104980.0,104970.0,0.52455087]
[1750210510254,0.02077153,104980.0,104970.0,0.52055087]
[1750210510475,0.02077153,104980.0,104970.0,0.51655087]
[1750210510720,0.02077153,104980.0,104970.0,0.52055087]
[1750210513673,0.02077153,104980.0,104970.0,0.24737715]
[1750210513904,0.04137153,104980.0,104970.0,0.42414947]
[1750210514130,0.04137153,104980.0,104970.0,0.42414956]
[1750210514352,0.04137153,104980.0,104970.0,0.43367563]
[1750210514788,0.04137153,104980.0,104970.0,0.44320097]
[1750210515458,0.04137153,104980.0,104970.0,0.24416097]
[1750210515713,0.04137153,104980.0,104970.0,0.44320097]
[1750210515946,0.04137153,104980.0,104970.0,0.44312097]
[1750210516155,0.04137153,104980.0,104970.0,0.24416097]
[1750210516362,0.04137153,104980.0,104970.0,0.44312097]
[1750210516781,0.02077153,104980.0,104970.0,0.44312097]
[1750210517656,0.02077153,104980.0,104970.0,0.24416097]
[1750210517867,0.02077153,104980.0,104970.0,0.44304097]
[1750210519828,0.00047153,104980.0,104970.0,0.65910232]
[1750210520510,0.00047153,104980.0,104970.0,0.77574408]
[1750210520751,0.00047153,104980.0,104970.0,0.79654408]
[1750210524306,0.00047153,104980.0,104970.0,0.38172273]
[1750210524520,0.00047153,104980.0,104970.0,0.75530408]
[1750210524730,0.00047153,104980.0,104970.0,0.53924273]
[1750210525168,0.00047153,104980.0,104970.0,0.77570408]
[1750210525369,0.00047153,104980.0,104970.0,0.86485233]
[1750210525580,0.00047153,104980.0,104970.0,0.77570408]
[1750210525789,0.00047153,104980.0,104970.0,0.79520408]
[1750210526152,0.00047153,104980.0,104970.0,0.53924273]
[1750210526363,0.02147153,104980.0,104970.0,0.52019068]
[1750210531089,0.00047153,104980.0,104970.0,0.52019068]
[1750210531513,0.02167153,104980.0,104970.0,0.52019068]
[1750210532318,0.00047153,104980.0,104970.0,0.52019068]
[1750210532541,0.00047153,104980.0,104970.0,0.51066479]
[1750210532752,0.00047153,104980.0,104970.0,0.52019068]
[1750210533161,0.02167153,104980.0,104970.0,0.52019068]
[1750210535754,0.00047153,104980.0,104970.0,0.52019068]
[1750210535973,0.02117153,104980.0,104970.0,0.51066479]
[1750210536411,0.02117153,104980.0,104970.0,0.52019068]
[1750210537702,0.00047153,104980.0,104970.0,0.52019068]
[1750210537928,0.00047153,104980.0,104970.0,0.75695203]
[1750210540277,0.00047153,104980.0,104970.0,0.52019086]
[1750210540494,0.00047153,104980.0,104970.0,0.52971675]
[1750210541154,0.00047153,104980.0,104970.0,0.54941675]
[1750210541792,0.00047153,104980.0,104970.0,0.7654781]
[1750210542801,0.00047153,104980.0,104970.0,0.7865781]
[1750210543225,0.00047153,104980.0,104970.0,1.00263945]
[1750210543445,0.00047153,104980.0,104970.0,1.0171803]
[1750210544922,0.00047153,104980.0,104970.0,0.5850576]
[1750210545130,0.00047153,104980.0,104970.0,0.80111895]
[1750210547473,0.00047153,104980.0,104970.0,0.5877381]
[1750210547651,0.00047153,104980.0,104970.0,0.7883781]
[1750210553649,0.00047153,104980.0,104970.0,1.00443945]
[1750210553901,0.00047153,104980.0,104970.0,0.7883781]
[1750210554133,0.00047153,104980.0,104970.0,1.00443945]
[1750210554358,0.00047153,104980.0,104970.0,1.00203945]
[1750210554983,0.00047153,104980.0,104970.0,0.56991675]
[1750210555199,0.00047153,104980.0,104970.0,1.07808567]
[1750210555689,0.00047153,104980.0,104970.0,1.00203945]
[1750210555910,0.00047153,104980.0,104970.0,0.5853381]
[1750210556131,0.00047153,104980.0,104970.0,0.7864581]
[1750210557871,0.00047153,104980.0,104970.0,0.7653581]
[1750210558564,0.00047153,104980.0,104970.0,0.54929675]
[1750210558793,0.00047153,104980.0,104970.0,0.37071675]
[1750210559015,0.02007153,104980.0,104970.0,0.52955675]
[1750210559673,0.00047153,104980.0,104970.0,0.52955675]
[1750210559882,0.00047153,104980.0,104970.0,0.7659181]
[1750210560320,0.00047153,104980.0,104970.0,0.7865181]
[1750210560556,0.00047153,104980.0,104970.0,1.00257945]
[1750210560777,0.00047153,104980.0,104970.0,0.5854381]
[1750210560985,0.00047153,104980.0,104970.0,0.7865581]
[1750210561656,0.00047153,104980.0,104970.0,0.41161675]
[1750210561897,0.00047153,104980.0,104970.0,0.54989675]
[1750210562131,0.00047153,104980.0,104970.0,0.7659581]
[1750210562781,0.00047153,104980.0,104970.0,0.7467781]
[1750210563005,0.00047153,104980.0,104970.0,0.53071675]
[1750210563942,0.00047153,104980.0,104970.0,0.53071721]
[1750210563943,0.02187153,104980.0,104970.0,0.53071721]
[1750210565264,0.02187153,104980.0,104970.0,0.32847721]
[1750210565529,0.02187153,104980.0,104970.0,0.53071721]
[1750210565739,0.02187153,104980.0,104970.0,0.29037238]
[1750210565973,0.04097153,104980.0,104970.0,0.51162516]
[1750210566193,0.04097153,104980.0,104970.0,0.52115123]
[1750210566632,0.04097153,104980.0,104970.0,0.52115132]
[1750210567336,0.02187153,104980.0,104970.0,0.54020328]
[1750210570021,0.00047153,104980.0,104970.0,0.77546463]
[1750210570700,0.00047153,104980.0,104970.0,1.01052598]
[1750210571245,0.00047153,104980.0,104970.0,1.02506683]
[1750210575476,0.00047153,104980.0,104970.0,0.59294413]
[1750210575694,0.00047153,104980.0,104970.0,0.80900548]
[1750210576130,0.00047153,104980.0,104970.0,1.02506683]
[1750210578507,0.05394668,105010.0,105000.0,0.00952362]
[1750210578508,0.04941821,105010.0,105000.0,0.00952362]
[1750210578764,0.06966536,105010.0,105000.0,0.14800556]
[1750210578978,0.06966536,105010.0,105000.0,0.51744881]
[1750210579384,0.06966536,105010.0,105000.0,0.5174489]
[1750210579826,0.06966536,105010.0,105000.0,0.52697234]
[1750210580032,0.07166536,105010.0,105000.0,0.5174489]
[1750210580237,0.07166536,105010.0,105000.0,0.52697234]
[1750210580649,0.07166536,105010.0,105000.0,0.5174489]
[1750210581095,0.07366536,105010.0,105000.0,0.50792537]
[1750210581518,0.07366536,105010.0,105000.0,0.5174489]
[1750210581934,0.07366536,105010.0,105000.0,0.53649569]
[1750210582154,0.07366536,105010.0,105000.0,0.52697189]
[1750210582359,0.07366536,105010.0,105000.0,0.48887795]
[1750210582584,0.07366536,105010.0,105000.0,0.50792528]
[1750210583015,0.07366536,105010.0,105000.0,0.51744881]
[1750210584136,0.07366536,105010.0,105000.0,0.52697225]
[1750210584335,0.07366536,105010.0,105000.0,0.50792528]
[1750210584540,0.07366536,105010.0,105000.0,0.51744881]
[1750210585394,0.07366536,105010.0,105000.0,0.50792528]
[1750210586525,0.07366536,105010.0,105000.0,0.51744881]
[1750210588312,0.07366536,105010.0,105000.0,0.52697225]
[1750210588499,0.07366536,105010.0,105000.0,0.51744881]
[1750210589686,0.07366536,105010.0,105000.0,0.50792528]
[1750210590101,0.07366536,105010.0,105000.0,0.51744881]
[1750210590538,0.07366536,105010.0,105000.0,0.50792528]
[1750210590965,0.07366536,105010.0,105000.0,0.51744881]
[1750210591179,0.07366536,105010.0,105000.0,0.52697225]
[1750210591397,0.07366536,105010.0,105000.0,0.51744881]
[1750210591902,0.07366536,105010.0,105000.0,0.50792528]
[1750210592473,0.05346536,105010.0,105000.0,0.52697225]
[1750210592701,0.05346536,105010.0,105000.0,0.51744881]
[1750210593548,0.05346536,105010.0,105000.0,0.29840176]
[1750210593762,0.05346536,105010.0,105000.0,0.30792556]
[1750210594021,0.05346536,105010.0,105000.0,0.32697289]
[1750210594231,0.05346536,105010.0,105000.0,0.53649587]
[1750210594445,0.03859383,105010.0,105000.0,0.53649524]
[1750210594652,0.03859383,105010.0,105000.0,0.60919259]
[1750210594860,0.03859383,105010.0,105000.0,0.62879259]
[1750210595074,0.00404715,105010.0,105000.0,0.64819259]
[1750210595481,0.00204715,105010.0,105000.0,0.57549524]
[1750210596092,4.715e-05,105010.0,105000.0,0.57549524]
[1750210596514,0.00104715,105010.0,105000.0,0.57549524]
[1750210596944,0.05547284,105020.0,105010.0,0.00952281]
[1750210597163,0.03477284,105020.0,105010.0,0.20950349]
[1750210597404,0.03477284,105020.0,105010.0,0.23807054]
[1750210597634,0.05011945,105040.0,105020.0,0.20948371]
[1750210597872,4.737e-05,105030.0,105020.0,0.37844534]
[1750210598547,4.737e-05,105030.0,105020.0,0.37844543]
[1750210598996,4.737e-05,105030.0,105020.0,0.38796706]
[1750210599235,4.737e-05,105030.0,105020.0,0.36892371]
[1750210599493,4.737e-05,105030.0,105020.0,0.38596688]
[1750210599691,0.00204737,105030.0,105020.0,0.38596688]
[1750210599896,0.00204737,105030.0,105020.0,0.40506688]
[1750210600360,0.00404737,105030.0,105020.0,0.40506697]
[1750210600804,0.00404737,105030.0,105020.0,0.36692371]
[1750210601023,0.00404737,105030.0,105020.0,0.37644543]
[1750210601298,0.03910552,105030.0,105020.0,0.3574019]
[1750210601495,0.00404737,105030.0,105020.0,0.37644552]
[1750210601934,0.00404737,105030.0,105020.0,0.41528851]
[1750210602383,0.00404737,105030.0,105020.0,0.58361847]
[1750210602600,0.00404737,105030.0,105020.0,0.60261847]
[1750210604173,0.00404737,105030.0,105020.0,0.53052964]
[1750210604854,0.00404737,105030.0,105020.0,0.74659099]
[1750210608370,0.04344737,105030.0,105020.0,0.04276]
[1750210608601,0.41200899,105030.0,105020.0,0.04276]
[1750210608817,0.0397,105020.0,105010.0,0.20252]
[1750210609035,0.07997882,105020.0,105010.0,0.20256]
[1750210609264,0.0397,105020.0,105010.0,0.04276]
[1750210609575,0.0397,105020.0,105010.0,0.2120829]
[1750210609806,0.0397,105020.0,105010.0,0.23112843]
[1750210610261,0.0397,105020.0,105010.0,0.27130911]
[1750210610483,0.0204,105020.0,105010.0,0.28083164]
[1750210611140,0.0204,105020.0,105010.0,0.33441521]
[1750210611610,0.0204,105020.0,105010.0,0.32489258]
[1750210611819,0.0204,105020.0,105010.0,0.33441521]
[1750210612243,0.0204,105020.0,105010.0,0.34393774]
[1750210612671,0.0204,105020.0,105010.0,0.25226376]
[1750210612881,0.0204,105020.0,105010.0,0.26178639]
[1750210613102,0.0204,105020.0,105010.0,0.26178648]
[1750210613314,0.0204,105020.0,105010.0,0.25226376]
[1750210613973,0.0399,105020.0,105010.0,0.25226376]
[1750210614199,0.36024737,105030.0,105020.0,0.19996181]
[1750210614443,0.34004737,105030.0,105020.0,0.38800697]
[1750210614666,0.34004737,105030.0,105020.0,0.19996181]
[1750210614886,0.34004737,105030.0,105020.0,0.22172389]
[1750210615320,0.34004737,105030.0,105020.0,0.2217238]
[1750210615556,0.34104737,105030.0,105020.0,0.2217238]
[1750210615811,0.34304737,105030.0,105020.0,0.2312457]
[1750210616024,0.38556716,105030.0,105020.0,0.21220199]
[1750210616232,0.38556716,105030.0,105020.0,0.42168561]
[1750210616862,0.38556716,105030.0,105020.0,0.4121638]
[1750210617329,0.38556716,105030.0,105020.0,0.21220199]
[1750210617577,0.38556716,105030.0,105020.0,0.22172389]
[1750210618221,0.38556716,105030.0,105020.0,0.21220199]
[1750210618424,0.38556716,105030.0,105020.0,0.22172389]
[1750210618837,0.38556716,105030.0,105020.0,0.2312457]
[1750210619040,0.38556716,105030.0,105020.0,0.22172389]
[1750210619474,0.38556716,105030.0,105020.0,0.20268]
[1750210620359,0.40556716,105030.0,105020.0,0.20268]
[1750210620798,0.36304737,105030.0,105020.0,0.20268]
[1750210621022,0.36304737,105030.0,105020.0,0.21220199]
[1750210621251,0.36304737,105030.0,105020.0,0.42168552]
[1750210621485,0.34304737,105030.0,105020.0,0.42168561]
[1750210621966,0.34304737,105030.0,105020.0,0.4121638]
[1750210622191,0.34304737,105030.0,105020.0,0.20268]
[1750210622411,0.38571716,105030.0,105020.0,0.20268]
[1750210622626,0.40491716,105030.0,105020.0,0.20268]
[1750210623073,0.38571716,105030.0,105020.0,0.20268]
[1750210623504,0.38571716,105030.0,105020.0,0.21220199]
[1750210623505,0.34304737,105030.0,105020.0,0.21220199]
[1750210623740,0.34304737,105030.0,105020.0,0.22172389]
[1750210623963,0.34304737,105030.0,105020.0,0.21220199]
[1750210624616,0.34304737,105030.0,105020.0,0.04276]
[1750210625734,0.34304737,105030.0,105020.0,0.25224344]
[1750210626160,0.34304737,105030.0,105020.0,0.28196498]
[1750210626373,0.34304737,105030.0,105020.0,0.27244344]
[1750210626576,0.34304737,105030.0,105020.0,0.28196498]
[1750210626780,0.34304737,105030.0,105020.0,0.29214344]
[1750210627561,0.34304737,105030.0,105020.0,0.30166498]
[1750210627769,0.34304737,105030.0,105020.0,0.31118643]
[1750210628078,0.34304737,105030.0,105020.0,0.28262181]
[1750210628280,0.34304737,105030.0,105020.0,0.26292181]
[1750210628458,0.34304737,105030.0,105020.0,0.27244362]
[1750210629856,0.34304737,105030.0,105020.0,0.06296]
[1750210630074,0.34304737,105030.0,105020.0,0.04276]
[1750210630400,0.34304737,105030.0,105020.0,0.05228199]
[1750210632133,0.34304737,105030.0,105020.0,0.07126199]
[1750210632902,0.34304737,105030.0,105020.0,0.08078389]
[1750210633316,0.34304737,105030.0,105020.0,0.07126199]
[1750210634101,0.34304737,105030.0,105020.0,0.06174]
[1750210634499,0.34304737,105030.0,105020.0,0.07126199]
[1750210634828,0.34304737,105030.0,105020.0,0.08078389]
[1750210635074,0.34304737,105030.0,105020.0,0.07126199]
[1750210635260,0.34304737,105030.0,105020.0,0.06174]
[1750210635471,0.34304737,105030.0,105020.0,0.0712619]
[1750210635669,0.34304737,105030.0,105020.0,0.06174]
[1750210635835,0.34304737,105030.0,105020.0,0.07126199]
[1750210636477,0.34304737,105030.0,105020.0,0.06174]
[1750210636854,0.34304737,105030.0,105020.0,0.07126199]
[1750210637637,0.34304737,105030.0,105020.0,0.02842199]
[1750210638002,0.34304737,105030.0,105020.0,0.08078389]
[1750210638369,0.34304737,105030.0,105020.0,0.07126199]
[1750210639782,0.34304737,105030.0,105020.0,0.06174]
[1750210644883,0.34304737,105030.0,105020.0,0.27257991]
[1750210645031,0.00304737,105030.0,105020.0,0.30114525]
[1750210645234,0.00304737,105030.0,105020.0,0.62296972]
[1750210646050,0.00304737,105030.0,105020.0,0.40690837]
[1750210647700,0.00304737,105030.0,105020.0,0.41642982]
[1750210660224,0.00304737,105030.0,105020.0,0.63249117]
[1750210672754,0.00304737,105030.0,105020.0,0.86309337]
[1750210672994,0.00304737,105030.0,105020.0,0.64703202]
[1750210673629,0.00104737,105030.0,105020.0,0.6763334]
[1750210673840,0.00104737,105030.0,105020.0,0.6783334]
[1750210674063,0.34452342,105070.0,105050.0,0.00951918]
[1750210674272,0.44927958,105070.0,105050.0,0.19992]
[1750210674483,0.0204,105060.0,105050.0,0.19992]
[1750210675113,0.0204,105060.0,105040.0,0.20942725]
[1750210675341,0.0204,105060.0,105040.0,0.09624176]
[1750210675546,0.0204,105060.0,105050.0,0.0416]
[1750210675547,0.02991764,105060.0,105050.0,0.0416]
[1750210676383,0.0224,105060.0,105050.0,0.0416]
[1750210676606,0.03191764,105060.0,105050.0,0.0416]
[1750210676831,0.03071846,105050.0,105040.0,0.0416]
[1750210677021,0.07211558,105050.0,105040.0,0.0416]
[1750210678576,0.07411558,105050.0,105040.0,0.0416]
[1750210678787,0.07511558,105050.0,105040.0,0.0416]
[1750210678990,0.07502799,105050.0,105040.0,0.0416]
[1750210680978,0.07502799,105050.0,105030.0,0.39962156]
[1750210680979,0.08454645,105050.0,105030.0,0.39962156]
[1750210681184,0.08454645,105050.0,105030.0,0.40914237]
[1750210681397,0.07502799,105050.0,105030.0,0.40914237]
[1750210681607,0.07502799,105050.0,105030.0,0.41866309]
[1750210681823,0.07202799,105050.0,105030.0,0.41866309]
[1750210682031,0.07502799,105050.0,105030.0,0.41866309]
[1750210682238,0.07502799,105050.0,105030.0,0.40914237]
[1750210682449,0.07502799,105050.0,105030.0,0.41866309]
[1750210682668,0.07502799,105050.0,105030.0,0.44818354]
[1750210682882,0.07502799,105050.0,105030.0,0.44818363]
[1750210683304,0.07502799,105050.0,105030.0,0.43866309]
[1750210683514,0.07502799,105050.0,105030.0,0.44818372]
[1750210683729,0.07502799,105050.0,105030.0,0.45770426]
[1750210684155,0.07502799,105050.0,105030.0,0.45522426]
[1750210684598,0.07502799,105050.0,105040.0,0.0416]
[1750210685443,0.07402799,105050.0,105040.0,0.0416]
[1750210685648,0.07502799,105050.0,105040.0,0.0416]
[1750210686552,0.05442799,105050.0,105040.0,0.0416]
[1750210687001,0.05242799,105050.0,105040.0,0.0416]
[1750210687211,0.05442799,105050.0,105040.0,0.0416]
[1750210688467,0.05442799,105050.0,105040.0,0.05112018]
[1750210688882,0.05442799,105050.0,105040.0,0.06064027]
[1750210689308,0.03331558,105050.0,105040.0,0.24152383]
[1750210689515,0.03331558,105050.0,105040.0,0.00952018]
[1750210689720,0.03331558,105050.0,105030.0,0.27106111]
[1750210689921,0.03331558,105050.0,105040.0,0.00952018]
[1750210690577,0.03131558,105050.0,105040.0,0.00952018]
[1750210690788,0.03231558,105050.0,105040.0,0.01904027]
[1750210691003,0.03231558,105050.0,105040.0,0.00952018]
[1750210691230,0.03131558,105050.0,105040.0,0.00952018]
[1750210691428,0.03131558,105050.0,105030.0,0.29126111]
[1750210691651,0.05126305,105050.0,105030.0,0.30078237]
[1750210692169,0.05026305,105050.0,105030.0,0.30078237]
[1750210692421,0.03331558,105050.0,105040.0,0.22884374]
[1750210692662,0.03331558,105050.0,105040.0,0.26808328]
[1750210692874,0.03331558,105050.0,105040.0,0.26808337]
[1750210693316,0.03131558,105050.0,105040.0,0.277603]
[1750210693549,0.03331558,105050.0,105040.0,0.277603]
[1750210693771,0.03031558,105050.0,105040.0,0.277603]
[1750210693983,0.36285101,105060.0,105040.0,0.26808337]
[1750210694190,0.002374,105050.0,105040.0,0.26808337]
[1750210694608,0.02711137,105050.0,105040.0,0.24904374]
[1750210694825,0.002,105050.0,105040.0,0.24904374]
[1750210695043,0.003,105050.0,105040.0,0.22884374]
[1750210695253,0.003,105050.0,105040.0,0.23836365]
[1750210696150,0.003,105050.0,105040.0,0.21932374]
[1750210696357,0.003,105050.0,105040.0,0.22884365]
[1750210697178,0.003,105050.0,105040.0,0.25906337]
[1750210697405,0.003,105050.0,105040.0,0.36482476]
[1750210697608,0.02870737,105050.0,105040.0,0.36482476]
[1750210698022,0.02870737,105050.0,105040.0,0.35530513]
[1750210698235,0.02770737,105050.0,105040.0,0.35530513]
[1750210698448,0.02770737,105050.0,105040.0,0.34678541]
[1750210698674,0.02770737,105050.0,105040.0,0.3467855]
[1750210699526,0.02570737,105050.0,105040.0,0.35630541]
[1750210699750,0.01903519,105060.0,105040.0,0.3467855]
[1750210699986,0.03953519,105060.0,105040.0,0.3467855]
[1750210700613,0.03953519,105060.0,105040.0,0.3457855]
[1750210701052,0.03301755,105060.0,105040.0,0.3457855]
[1750210701298,0.05891214,105060.0,105040.0,0.35530541]
[1750210701515,0.05891214,105060.0,105040.0,0.36482523]
[1750210701776,0.04939459,105060.0,105040.0,0.35530541]
[1750210702223,0.04939459,105060.0,105040.0,0.36482523]
[1750210702483,0.04939459,105060.0,105040.0,0.35530541]
[1750210703152,0.05891223,105060.0,105040.0,0.3457855]
[1750210703387,4.831059,105060.0,105040.0,0.3457855]
[1750210703631,0.05081534,105060.0,105040.0,0.13634176]
[1750210703876,0.26166968,105060.0,105040.0,0.0194]
[1750210704115,0.26166968,105060.0,105030.0,0.0201]
[1750210704116,0.0190389,105040.0,105030.0,0.0201]
[1750210704344,0.00951936,105040.0,105020.0,0.09002199]
[1750210704566,0.00951936,105040.0,105020.0,0.28998343]
[1750210705243,0.00951936,105040.0,105020.0,0.25790515]
[1750210705455,0.00951936,105040.0,105020.0,0.29946515]
[1750210705659,0.00951936,105040.0,105020.0,0.24838343]
[1750210705869,0.00951936,105040.0,105020.0,0.29946515]
[1750210706288,0.01903899,105040.0,105020.0,0.08998199]
[1750210706498,0.01903899,105040.0,105030.0,0.002]
[1750210706706,0.0190389,105040.0,105030.0,0.002]
[1750210706910,0.0190389,105040.0,105020.0,0.10350389]
[1750210707146,0.06517223,105040.0,105020.0,0.10350389]
[1750210707331,0.06517214,105040.0,105020.0,0.1150257]
[1750210707543,0.06517214,105040.0,105020.0,0.1110257]
[1750210707763,0.07469177,105040.0,105020.0,0.08246]
[1750210707975,0.09219177,105040.0,105030.0,0.004]
[1750210708192,0.09219177,105040.0,105020.0,0.08246]
[1750210708859,0.09219177,105040.0,105020.0,0.09198199]
[1750210709068,0.09219177,105040.0,105020.0,0.08246]
[1750210709293,0.09219177,105040.0,105020.0,0.09198199]
[1750210709517,0.08267214,105040.0,105020.0,0.09298199]
[1750210709735,0.09219168,105040.0,105030.0,0.002]
[1750210709947,0.05565269,105040.0,105030.0,0.002]
[1750210710163,0.06517214,105040.0,105020.0,0.28342179]
[1750210710377,0.07469177,105040.0,105020.0,0.10250389]
[1750210710591,0.06517214,105040.0,105020.0,0.1140257]
[1750210710797,0.06517214,105040.0,105020.0,0.1110257]
[1750210711018,0.06517214,105040.0,105030.0,0.003]
[1750210711484,0.06517214,105040.0,105020.0,0.1110257]
[1750210711691,0.06517214,105040.0,105020.0,0.10150389]
[1750210711895,0.05565269,105040.0,105020.0,0.29194314]
[1750210712104,0.05565269,105040.0,105020.0,0.30146495]
[1750210712321,0.05568219,105040.0,105020.0,0.29946495]
[1750210712766,0.05568219,105040.0,105030.0,0.002]
[1750210713182,0.06520173,105040.0,105020.0,0.29294314]
[1750210713401,0.06520173,105040.0,105020.0,0.09298199]
[1750210713623,0.06520173,105040.0,105020.0,0.09498199]
[1750210714054,0.07472136,105040.0,105020.0,0.09198199]
[1750210714257,0.07472136,105040.0,105030.0,0.003]
[1750210714468,0.05568219,105040.0,105030.0,0.003]
[1750210714665,0.07472118,105040.0,105020.0,0.10150389]
[1750210714896,0.07472118,105040.0,105020.0,0.10450389]
[1750210715171,0.06520164,105040.0,105020.0,0.10150389]
[1750210715374,0.06520164,105040.0,105020.0,0.1110257]
[1750210715786,0.05568219,105040.0,105020.0,0.31098533]
[1750210715989,0.05568219,105040.0,105020.0,0.29946361]
[1750210716434,0.05568219,105040.0,105030.0,0.002]
[1750210716645,0.05568219,105040.0,105030.0,0.005]
[1750210716818,0.06520173,105040.0,105020.0,0.29946361]
[1750210717032,0.06520173,105040.0,105020.0,0.2919418]
[1750210717234,0.06520173,105040.0,105020.0,0.2949418]
[1750210717443,0.06520164,105040.0,105020.0,0.30146361]
[1750210717658,0.06520164,105040.0,105020.0,0.09198199]
[1750210717873,0.11324109,105040.0,105030.0,0.003]
[1750210718066,0.10372127,105040.0,105020.0,0.08246]
[1750210718425,0.11324109,105040.0,105020.0,0.08546]
[1750210718857,0.11324118,105040.0,105020.0,0.08546]
[1750210719099,0.09402127,105040.0,105020.0,0.08546]
[1750210719292,0.10354109,105040.0,105020.0,0.08546]
[1750210719719,0.10354109,105040.0,105020.0,0.08346]
[1750210720141,0.113061,105040.0,105030.0,0.002]
[1750210720372,0.10354109,105040.0,105030.0,0.002]
[1750210720585,0.10354109,105040.0,105020.0,0.08346]
[1750210720796,0.10354109,105040.0,105020.0,0.08546]
[1750210721015,0.18627844,105040.0,105020.0,0.09498199]
[1750210721250,0.18627844,105040.0,105020.0,0.09198199]
[1750210721478,0.18627844,105040.0,105030.0,0.003]
[1750210721987,0.01903881,105040.0,105030.0,0.0225]
[1750210722181,0.34951909,105050.0,105030.0,0.0422]
[1750210722382,4.831059,105040.0,105030.0,0.0422]
[1750210722942,4.831059,105040.0,105030.0,0.0442]
[1750210723413,4.831059,105040.0,105030.0,0.0412]
[1750210724095,0.00951945,105040.0,105030.0,0.0412]
[1750210724321,0.01903908,105040.0,105030.0,0.0215]
[1750210724762,0.01903908,105040.0,105030.0,0.0245]
[1750210724991,0.00951945,105040.0,105030.0,0.0245]
[1750210725428,0.01903917,105040.0,105030.0,0.0245]
[1750210725647,0.12384915,105040.0,105030.0,0.005]
[1750210725873,0.11432915,105040.0,105030.0,0.005]
[1750210726079,0.12384915,105040.0,105030.0,0.005]
[1750210726307,0.11432915,105040.0,105030.0,0.005]
[1750210726521,0.12384915,105040.0,105030.0,0.005]
[1750210726942,0.11432915,105040.0,105030.0,0.005]
[1750210727149,0.12384915,105040.0,105030.0,0.005]
[1750210727590,0.13336933,105040.0,105030.0,0.005]
[1750210727802,0.14314915,105040.0,105030.0,0.005]
[1750210728435,0.11432915,105040.0,105030.0,0.005]
[1750210729269,0.12384906,105040.0,105030.0,0.005]
[1750210730599,0.11432915,105040.0,105030.0,0.005]
[1750210731007,0.12384915,105040.0,105030.0,0.005]
[1750210731854,0.11432915,105040.0,105030.0,0.005]
[1750210732064,0.12384915,105040.0,105030.0,0.005]
[1750210732277,0.11432915,105040.0,105030.0,0.005]
[1750210732489,0.12384915,105040.0,105030.0,0.005]
[1750210732634,0.11432915,105040.0,105030.0,0.005]
[1750210734001,0.11432915,105040.0,105030.0,0.0258]
[1750210734121,0.01903917,105040.0,105030.0,0.0258]
[1750210739273,0.02855899,105040.0,105030.0,0.0258]
[1750210739700,0.0380789,105040.0,105030.0,0.0258]
[1750210740029,0.02855899,105040.0,105030.0,0.0258]
[1750210740896,0.03807908,105040.0,105030.0,0.0258]
[1750210741107,0.03807908,105040.0,105030.0,0.005]
[1750210741108,5.74991354,105040.0,105030.0,0.005]
[1750210741317,5.79955553,105040.0,105030.0,0.005]
[1750210741643,6.35208756,105040.0,105030.0,0.005]
[1750210741881,6.35208756,105040.0,105030.0,0.003]
[1750210742112,6.35308756,105040.0,105030.0,0.003]
[1750210742348,6.32627817,105040.0,105030.0,0.003]
[1750210742997,6.35305564,105040.0,105030.0,0.003]
[1750210743444,0.01904281,105020.0,105010.0,0.082312]
[1750210743663,0.16724127,105020.0,105010.0,0.082312]
[1750210744277,0.17676272,105020.0,105010.0,0.082312]
[1750210744600,0.16724127,105020.0,105010.0,0.082312]
[1750210744778,0.16724117,105020.0,105010.0,0.08445414]
[1750210745527,0.27071246,105020.0,105010.0,0.08745414]
[1750210745744,0.26119056,105020.0,105010.0,0.08745414]
[1750210746006,0.25166893,105020.0,105010.0,0.08745414]
[1750210746684,0.27071264,105020.0,105010.0,0.08745414]
[1750210746929,0.27071255,105020.0,105010.0,0.08745414]
[1750210747149,0.26119065,105020.0,105010.0,0.08745414]
[1750210747587,0.27071255,105020.0,105010.0,0.08745414]
[1750210748711,0.27071246,105020.0,105010.0,0.08745414]
[1750210748923,0.26119056,105020.0,105010.0,0.08745414]
[1750210749146,0.27071228,105020.0,105010.0,0.08745414]
[1750210749361,0.27071219,105020.0,105010.0,0.08745414]
[1750210750028,0.17676262,105020.0,105010.0,0.08745414]
[1750210751217,0.19580597,105020.0,105010.0,0.08745414]
[1750210751448,0.19372597,105020.0,105010.0,0.08745414]
[1750210751670,0.19372661,105020.0,105010.0,0.04589414]
[1750210752316,0.2032486,105020.0,105010.0,0.04589414]
[1750210752538,0.22141607,105020.0,105010.0,0.04589414]
[1750210752753,0.23093797,105020.0,105010.0,0.04589414]
[1750210752965,0.41185643,105020.0,105010.0,0.02629414]
[1750210753183,0.41185643,105020.0,105010.0,0.04689414]
[1750210753400,0.22141652,105020.0,105010.0,0.04689414]
[1750210754291,0.21189462,105020.0,105010.0,0.04689414]
[1750210758292,0.22141661,105020.0,105010.0,0.04689414]
[1750210758528,0.21189462,105020.0,105010.0,0.04689414]
[1750210758718,0.22141652,105020.0,105010.0,0.04689414]
[1750210759799,0.23093851,105020.0,105010.0,0.04689414]
[1750210760182,0.22141652,105020.0,105010.0,0.04689414]
[1750210760799,0.21189462,105020.0,105010.0,0.04689414]
[1750210761257,0.20237245,105020.0,105010.0,0.04689414]
[1750210761496,0.23018763,105020.0,105010.0,0.04689414]
[1750210761710,0.25875243,105020.0,105010.0,0.04689414]
[1750210762928,0.26827442,105020.0,105010.0,0.04689414]
[1750210763529,0.1862448,105020.0,105010.0,0.04689414]
[1750210764371,0.17672299,105020.0,105010.0,0.04689414]
[1750210764797,0.1767229,105020.0,105010.0,0.04689414]
[1750210765257,0.16720136,105020.0,105010.0,0.04689414]
[1750210765461,0.1767229,105020.0,105010.0,0.04689414]
[1750210765653,0.16720136,105020.0,105010.0,0.04689414]
[1750210765860,0.0190429,105020.0,105010.0,0.04689414]
[1750210766116,0.01904281,105020.0,105010.0,0.04689414]